{"text_format":"3","workbook":"xlsx","n_sheets":2,"sheets":["Pradžia","Atostogų biudžeto pl. priemonė"],"not_rendered":{"defined_names":1},"read":"whole","date_system":"1900"}

{"sheet":"Pradžia","index":0,"n_rows":7,"n_cols":2,"rows_kept":7}
[null,"APIE ŠĮ ŠABLONĄ"]
[null,"Sekite savo išlaidas su šia atostogų biudžeto planavimo priemonė."]
[null,"Įveskite biudžetas ir Faktinės išlaidas, patirtas įvairiose prekėse lentelėse."]
[null,"Švenčių biudžetas, bendra faktinė išleista suma ir skirtumas automatiškai suskaičiuojami."]
[null,"Pastaba. "]
[null,"Papildomos instrukcijos pateikiamos darbalapio ATOSTOGŲ BIUDŽETO PLANAVIMO PRIEMONĖ a stulpelyje. Šis tekstas buvo specialiai paslėptas. Norėdami pašalinti tekstą, pasirinkite A stulpelį, tada pasirinkite Naikinti. Norėdami nebeslėpti teksto, pasirinkite A stulpelį, tada pakeiskite šrifto spalvą."]
[null,"Norėdami sužinoti daugiau apie lenteles, lentelėje paspauskite SHIFT, tada – F10, pasirinkite parinktį LENTELĖ, tada pasirinkite ALTERNATYVUS TEKSTAS."]

{"sheet":"Atostogų biudžeto pl. priemonė","index":1,"n_rows":32,"n_cols":12,"rows_kept":32,"merged":[[1,1,5,4],[2,8,2,9],[3,8,3,9],[4,8,4,9],[6,1,6,4],[6,8,6,11],[15,1,15,4],[15,8,15,11],[25,1,25,4],[25,8,25,11]]}
["Atitinkamose šio darbalapio lentelėse įveskite biudžetas ir faktinės kiekvienos kategorijos išlaidas. Naudingi patarimai, kaip naudoti šį darbalapį, pateikti šio stulpelio langeliuose. Paspauskite rodyklę žemyn, kad pradėtumėte. "]
["Šio darbalapio pavadinimas yra langelyje dešinėje.","Švenčių biudžetas \nPlanavimo priemonė"]
["Švenčių biudžetas automatiškai apskaičiuojamas K3 langelyje.",{"$nulls":7},"ŠVENČIŲ BIUDŽETAS",null,{"$f":"SUM(Dovanos[Biudžetas],Pakuotės[Biudžetas],(Transportas[Biudžetas],(Maistas[Biudžetas],(Pramogos[Biudžetas],Įvairūs[Biudžetas]))))","v":{"v":750,"d":"750.00 EUR"}}]
["Faktinė išleista suma automatiškai apskaičiuojama K3 langelyje.",{"$nulls":7},"FAKTINĖ IŠLEISTA SUMA",null,{"$f":"SUM((Dovanos[Faktinės],(Pakuotės[Faktinės],(Transportas[Faktinės],(Maistas[Faktinės],(Pramogos[Faktinės],(Įvairūs[Faktinės])))))))","v":{"v":820,"d":"820.00 EUR"}}]
["Skirtumas automatiškai apskaičiuojamas K5 langelyje. Naujas nurodymas yra A7 langelyje.",{"$nulls":7},"SKIRTUMAS (viršytas / nepasiektas biudžetas)",null,{"$f":"SUM(K3-K4)","v":{"v":-70,"d":"-70.00 EUR"}}]
[]
["Dovanos žymė yra langelyje dešinėje, o atostogų maistas žyma I7 langelyje.","Dovanos",{"$nulls":6},"Atostogų maistas"]
["Įveskite informaciją lentelėje Dovanos, pradėdami langelyje dešinėje, ir lentelėje Maistas, pradėdami I8 langelyje. Kitas nurodymas yra A16 langelyje.","Prekė","Biudžetas","Faktinės","Skirtumas",{"$nulls":3},"Prekė","Biudžetas","Faktinės","Skirtumas"]
[null,"Šeima",{"v":500,"d":"500.00 EUR"},{"v":495,"d":"495.00 EUR"},{"$f":"Dovanos[[#This Row],[Biudžetas]]-Dovanos[[#This Row],[Faktinės]]","v":{"v":5,"d":"5.00 EUR"}},{"$nulls":3},"Maisto prekės",null,null,{"$f":"Maistas[[#This Row],[Biudžetas]]-Maistas[[#This Row],[Faktinės]]","v":{"v":0,"d":"0.00 EUR"}}]
[null,"Draugai",{"v":250,"d":"250.00 EUR"},{"v":325,"d":"325.00 EUR"},{"$f":"Dovanos[[#This Row],[Biudžetas]]-Dovanos[[#This Row],[Faktinės]]","v":{"v":-75,"d":"-75.00 EUR"}},{"$nulls":3},"Aukojimai",null,null,{"$f":"Maistas[[#This Row],[Biudžetas]]-Maistas[[#This Row],[Faktinės]]","v":{"v":0,"d":"0.00 EUR"}}]
[null,"Bendradarbiai",null,null,{"$f":"Dovanos[[#This Row],[Biudžetas]]-Dovanos[[#This Row],[Faktinės]]","v":{"v":0,"d":"0.00 EUR"}},{"$nulls":3},"Dekoracijos",null,null,{"$f":"Maistas[[#This Row],[Biudžetas]]-Maistas[[#This Row],[Faktinės]]","v":{"v":0,"d":"0.00 EUR"}}]
[null,"Mokytojai, auklės, ir pan.",null,null,{"$f":"Dovanos[[#This Row],[Biudžetas]]-Dovanos[[#This Row],[Faktinės]]","v":{"v":0,"d":"0.00 EUR"}},{"$nulls":3},"Kita (skirtukas paskutiniame stulpelyje šioje eilutėje, skirtas įtraukti eilutę)",null,null,{"$f":"Maistas[[#This Row],[Biudžetas]]-Maistas[[#This Row],[Faktinės]]","v":{"v":0,"d":"0.00 EUR"}}]
[null,"Labdaros aukos",null,null,{"$f":"Dovanos[[#This Row],[Biudžetas]]-Dovanos[[#This Row],[Faktinės]]","v":{"v":0,"d":"0.00 EUR"}},{"$nulls":3},"Suma",{"$f":"SUBTOTAL(109,Maistas[Biudžetas])","v":{"v":0,"d":"0.00 EUR"}},{"$f":"SUBTOTAL(109,Maistas[Faktinės])","v":{"v":0,"d":"0.00 EUR"}},{"$f":"SUBTOTAL(109,Maistas[Skirtumas])","v":{"v":0,"d":"0.00 EUR"}}]
[null,"Kita (skirtukas paskutiniame stulpelyje šioje eilutėje, skirtas įtraukti eilutę)",null,null,{"$f":"Dovanos[[#This Row],[Biudžetas]]-Dovanos[[#This Row],[Faktinės]]","v":{"v":0,"d":"0.00 EUR"}}]
[null,"Suma",{"$f":"SUBTOTAL(109,Dovanos[Biudžetas])","v":{"v":750,"d":"750.00 EUR"}},{"$f":"SUBTOTAL(109,Dovanos[Faktinės])","v":{"v":820,"d":"820.00 EUR"}},{"$f":"SUBTOTAL(109,Dovanos[Skirtumas])","v":{"v":-70,"d":"-70.00 EUR"}}]
["Pakuotės žymė yra langelyje dešinėje, o pramogos žymė – I16 langelyje.","Pakuotės",{"$nulls":6},"Pramogos"]
["Įveskite informaciją lentelėje Pakuotės, pradėdami langelyje dešinėje, ir lentelėje Pramogos, pradėdami I17 langelyje. Kitas nurodymas yra langelyje A26.","Prekė","Biudžetas","Faktinės","Skirtumas",{"$nulls":3},"Prekė","Biudžetas","Faktinės","Skirtumas"]
[null,"Dovanų popierius",null,null,{"$f":"Pakuotės[[#This Row],[Biudžetas]]-Pakuotės[[#This Row],[Faktinės]]","v":{"v":0,"d":"0.00 EUR"}},{"$nulls":3},"Padedantys asmenys (barmenas, maisto ir gėrimų tiekėjas, valytojai ir kt.)",null,null,{"$f":"Pramogos[[#This Row],[Biudžetas]]-Pramogos[[#This Row],[Faktinės]]","v":{"v":0,"d":"0.00 EUR"}}]
[null,"Žymės",null,null,{"$f":"Pakuotės[[#This Row],[Biudžetas]]-Pakuotės[[#This Row],[Faktinės]]","v":{"v":0,"d":"0.00 EUR"}},{"$nulls":3},"Dekoracijos",null,null,{"$f":"Pramogos[[#This Row],[Biudžetas]]-Pramogos[[#This Row],[Faktinės]]","v":{"v":0,"d":"0.00 EUR"}}]
[null,"Prekės (juostelės, juostos ir kt.)",null,null,{"$f":"Pakuotės[[#This Row],[Biudžetas]]-Pakuotės[[#This Row],[Faktinės]]","v":{"v":0,"d":"0.00 EUR"}},{"$nulls":3},"Maistas ir gėrimai",null,null,{"$f":"Pramogos[[#This Row],[Biudžetas]]-Pramogos[[#This Row],[Faktinės]]","v":{"v":0,"d":"0.00 EUR"}}]
[null,"Dėžutės",null,null,{"$f":"Pakuotės[[#This Row],[Biudžetas]]-Pakuotės[[#This Row],[Faktinės]]","v":{"v":0,"d":"0.00 EUR"}},{"$nulls":3},"Drabužiai",null,null,{"$f":"Pramogos[[#This Row],[Biudžetas]]-Pramogos[[#This Row],[Faktinės]]","v":{"v":0,"d":"0.00 EUR"}}]
[null,"Pašto išlaidos",null,null,{"$f":"Pakuotės[[#This Row],[Biudžetas]]-Pakuotės[[#This Row],[Faktinės]]","v":{"v":0,"d":"0.00 EUR"}},{"$nulls":3},"Bilietai",null,null,{"$f":"Pramogos[[#This Row],[Biudžetas]]-Pramogos[[#This Row],[Faktinės]]","v":{"v":0,"d":"0.00 EUR"}}]
[null,"Kita (skirtukas paskutiniame stulpelyje šioje eilutėje, skirtas įtraukti eilutę)",null,null,{"$f":"Pakuotės[[#This Row],[Biudžetas]]-Pakuotės[[#This Row],[Faktinės]]","v":{"v":0,"d":"0.00 EUR"}},{"$nulls":3},"Pietūs išsinešti",null,null,{"$f":"Pramogos[[#This Row],[Biudžetas]]-Pramogos[[#This Row],[Faktinės]]","v":{"v":0,"d":"0.00 EUR"}}]
[null,"Suma",{"$f":"SUBTOTAL(109,Pakuotės[Biudžetas])","v":{"v":0,"d":"0.00 EUR"}},{"$f":"SUBTOTAL(109,Pakuotės[Faktinės])","v":{"v":0,"d":"0.00 EUR"}},{"$f":"SUBTOTAL(109,Pakuotės[Skirtumas])","v":{"v":0,"d":"0.00 EUR"}},{"$nulls":3},"Kita (skirtukas paskutiniame stulpelyje šioje eilutėje, skirtas įtraukti eilutę)",null,null,{"$f":"Pramogos[[#This Row],[Biudžetas]]-Pramogos[[#This Row],[Faktinės]]","v":{"v":0,"d":"0.00 EUR"}}]
[{"$nulls":8},"Suma",{"$f":"SUBTOTAL(109,Pramogos[Biudžetas])","v":{"v":0,"d":"0.00 EUR"}},{"$f":"SUBTOTAL(109,Pramogos[Faktinės])","v":{"v":0,"d":"0.00 EUR"}},{"$f":"SUBTOTAL(109,Pramogos[Skirtumas])","v":{"v":0,"d":"0.00 EUR"}}]
["Transportas žymė yra langelyje dešinėje, o Įvairūs elementų žymė – I26 langelyje.","Transportas",{"$nulls":6},"Įvairūs"]
["Įveskite informaciją lentelėje Transportas, pradėdami langelyje dešinėje, ir lentelėje Įvairūs elementai, pradėdami I27 langelyje.","Prekė","Biudžetas","Faktinės","Skirtumas",{"$nulls":3},"Prekė","Biudžetas","Faktinės","Skirtumas"]
[null,"Lėktuvo bilietų kaina",null,null,{"$f":"Transportas[[#This Row],[Biudžetas]]-Transportas[[#This Row],[Faktinės]]","v":{"v":0,"d":"0.00 EUR"}},{"$nulls":3},"Atostogų nuotraukos",null,null,{"$f":"Įvairūs[[#This Row],[Biudžetas]]-Įvairūs[[#This Row],[Faktinės]]","v":{"v":0,"d":"0.00 EUR"}}]
[null,"Apgyvendinimas",null,null,{"$f":"Transportas[[#This Row],[Biudžetas]]-Transportas[[#This Row],[Faktinės]]","v":{"v":0,"d":"0.00 EUR"}},{"$nulls":3},"Degalai ",null,null,{"$f":"Įvairūs[[#This Row],[Biudžetas]]-Įvairūs[[#This Row],[Faktinės]]","v":{"v":0,"d":"0.00 EUR"}}]
[null,"Transportas",null,null,{"$f":"Transportas[[#This Row],[Biudžetas]]-Transportas[[#This Row],[Faktinės]]","v":{"v":0,"d":"0.00 EUR"}},{"$nulls":3},"Kita (skirtukas paskutiniame stulpelyje šioje eilutėje, skirtas įtraukti eilutę)",null,null,{"$f":"Įvairūs[[#This Row],[Biudžetas]]-Įvairūs[[#This Row],[Faktinės]]","v":{"v":0,"d":"0.00 EUR"}}]
[null,"Kita (skirtukas paskutiniame stulpelyje šioje eilutėje, skirtas įtraukti eilutę)",null,null,{"$f":"Transportas[[#This Row],[Biudžetas]]-Transportas[[#This Row],[Faktinės]]","v":{"v":0,"d":"0.00 EUR"}},{"$nulls":3},"Suma",{"$f":"SUBTOTAL(109,Įvairūs[Biudžetas])","v":{"v":0,"d":"0.00 EUR"}},{"$f":"SUBTOTAL(109,Įvairūs[Faktinės])","v":{"v":0,"d":"0.00 EUR"}},{"$f":"SUBTOTAL(109,Įvairūs[Skirtumas])","v":{"v":0,"d":"0.00 EUR"}}]
[null,"Suma",{"$f":"SUBTOTAL(109,Transportas[Biudžetas])","v":{"v":0,"d":"0.00 EUR"}},{"$f":"SUBTOTAL(109,Transportas[Faktinės])","v":{"v":0,"d":"0.00 EUR"}},{"$f":"SUBTOTAL(109,Transportas[Skirtumas])","v":{"v":0,"d":"0.00 EUR"}}]